Cogmind - Beta 15 @@@ ROGUE MODE // 2025.05.12 @ 22:30:44 Player: harambe Result: Destroyed by H-71 Marshal with Heavy Mass Driver Performance ------------- Evolutions (6) 3000 Regions Visited (14) 2800 Robots Destroyed (124) 620 Value Destroyed (5005) 5005 Prototype IDs (10) 200 Alien Tech Used (0) 0 Bonus (1623) 1623 TOTAL SCORE: 13248 Bonus ------- Follower Combat Kills 637 Met Warlord at Base 500 MAIN.C Attacked Warlord 500 Friendly Fire -14 Cogmind --------- Core Integrity 0/1150 Matter 285/300 Energy 36/100 System Corruption 19% Temperature Cool (0) Movement Core (50) Location -4/Factory Parts ------- > --- POWER (2) -------- (None) > --- PROPULSION (7) --- (None) > --- UTILITY (8) ------ Machine Analyzer Improved Targeting Computer > --- WEAPON (2) ------- (None) > --- INVENTORY (5) ---- Nuclear Pulse Array Nuclear Pulse Array Peak State ------------ > --- POWER ------------ Neutrino Core Micro Fission Core > --- PROPULSION ------- Armored Medium Treads Armored Medium Treads Armored Medium Treads Armored Medium Treads Advanced Medium Treads Spiked Heavy Treads > --- UTILITY ---------- Huge Storage Unit Machine Analyzer Advanced Signal Interpreter Improved Targeting Computer Advanced Transmission Jammer Hardened Medium Armor Plating Improved Hacking Suite Improved Hacking Suite > --- WEAPON ----------- Advanced Variable Charge Gun Hypervelocity Mass Driver > --- INVENTORY -------- Improved Fusion Compressor Wheel Compact Wheel Nuclear Pulse Array Nuclear Pulse Array Nuclear Pulse Array Nuclear Pulse Array Improved Cryofiber Web Advanced Heat Sink Improved Cooling System Large Storage Unit Compact Battery Matter Compressor Core Analyzer Hardened Medium Armor Plating Advanced Shield Generator Improved Hacking Suite Heavy Mass Driver Rocket Launcher [Rating: 114] Favorites ----------- Power Neutrino Core Engine Cooled Ion Engine Power Core Neutrino Core Propulsion Wheel Treads Armored Medium Treads Leg Aluminum Leg Wheel Wheel Utility Improved Targeting Computer Device Advanced Sensor Array Storage Huge Storage Unit Processor Improved Targeting Computer Hackware Improved Hacking Suite Protection Hardened Medium Armor Plating Weapon KE Penetrator Energy Gun EM Pulse Gun Energy Cannon Phase Cannon Ballistic Gun KE Penetrator Ballistic Cannon Heavy Flak Cannon Launcher Rocket Launcher Special Weapon Mining Laser Impact Weapon Flail Slashing Weapon Power Sword Build | -11 -10 -9 -8 -8 -8 -6 -6 -6 -5 -5 -5 -5 -4 -4 ------- Run | Yrd Mat Mat Mat Sto Rec Fac Was Fac Fac Upp Upp War Pro Fac Slots Evolved 12 | . . 2 2 . . 4 . . 2 . . . . 2 Power 1 | . . . . . . . . . 1 . . . . . Propulsion 5 | . . 2 . . . 2 . . . . . . . 1 Utility 6 | . . . 2 . . 2 . . 1 . . . . 1 Weapon . | . . . . . . . . . . . . . . . Parts Attached 111 | . 10 12 5 10 1 14 2 3 16 2 1 6 1 28 Power 13 | . 1 1 1 1 . 1 . . 2 1 . 1 . 4 Engine 6 | . 1 1 1 1 . 1 . . 1 . . . . . Core 7 | . . . . . . . . . 1 1 . 1 . 4 Reactor . | . . . . . . . . . . . . . . . Propulsion 42 | . 3 8 1 4 . 6 2 . 6 . . 5 . 7 Treads 21 | . 2 2 1 1 . 1 1 . 5 . . 5 . 3 Leg . | . . . . . . . . . . . . . . . Wheel 21 | . 1 6 . 3 . 5 1 . 1 . . . . 4 Hover . | . . . . . . . . . . . . . . . Flight . | . . . . . . . . . . . . . . . Utility 31 | . 3 . 2 2 . 4 . 1 5 . 1 . . 13 Device 13 | . . . . . . 2 . 1 3 . 1 . . 6 Storage 2 | . 1 . . . . . . . . . . . . 1 Processor 8 | . 2 . 2 . . 2 . . . . . . . 2 Hackware 2 | . . . . . . . . . 1 . . . . 1 Protection 6 | . . . . 2 . . . . 1 . . . . 3 Artifact . | . . . . . . . . . . . . . . . Weapon 25 | . 3 3 1 3 1 3 . 2 3 1 . . 1 4 Energy Gun 2 | . 1 . . . . . . . . . . . . 1 Energy Cannon 2 | . . . . . . . . . 1 . . . 1 . Ballistic Gun 11 | . 2 3 1 . 1 . . 1 2 . . . . 1 Ballistic Cannon 4 | . . . . . . 2 . . . . . . . 2 Launcher 3 | . . . . 1 . 1 . . . 1 . . . . Special Weapon 1 | . . . . 1 . . . . . . . . . . Impact Weapon 1 | . . . . 1 . . . . . . . . . . Slashing Weapon 1 | . . . . . . . . 1 . . . . . . Piercing Weapon . | . . . . . . . . . . . . . . . Special Melee Weapon . | . . . . . . . . . . . . . . . Unidentified Prototypes 2 | . . . . 1 . . . . . . . . . 1 Parts Lost 41 | . . 2 . 3 . . . 1 6 1 . . . 28 Power 6 | . . . . . . . . . 1 . . . . 5 Propulsion 16 | . . 1 . 2 . . . 1 2 . . . . 10 Utility 15 | . . . . 1 . . . . 3 1 . . . 10 Weapon 4 | . . 1 . . . . . . . . . . . 3 Highest Loss Streak 17 | . . 1 . 3 . . . 1 3 1 . . . 17 To Critical Strikes 1 | . . . . . . . . . . . . . . 1 Average Backups 23 | . 18 24 24 24 25 24 24 23 23 23 24 23 24 21 Power 1 | . 2 2 2 2 2 2 1 1 . . . . 1 . Propulsion 5 | . 8 5 5 3 4 4 5 4 3 5 5 4 4 6 Utility 10 | . 4 10 10 11 12 10 12 12 11 9 10 11 11 10 Weapon 6 | . 3 6 7 7 7 7 6 6 7 8 8 7 8 4 Tool/Special . | . . . . . . . . . . . . . . . Unused Backups 71 | . 12 11 7 3 2 9 1 2 2 . . 3 1 18 Power 5 | . . 3 . 1 . . . . 1 . . . . . Propulsion 14 | . . 2 2 . . 1 . . . . . 1 1 7 Utility 36 | . 6 3 3 2 2 4 1 2 1 . . 2 . 10 Weapon 16 | . 6 3 2 . . 4 . . . . . . . 1 Tool/Special . | . . . . . . . . . . . . . . . Average Slot Usage (%) 93 | . 99 99 99 100 100 93 93 93 91 91 94 89 94 89 Engine 5 | . 14 11 9 9 9 6 6 6 7 . . . . . Core 4 | . . . . . . . . . 1 8 11 11 11 9 Treads 14 | . 12 11 9 9 9 12 13 14 16 17 17 17 17 18 Wheel 15 | . 12 32 27 26 27 20 20 18 11 11 11 11 11 7 Device 6 | . . . . . . 5 6 6 9 11 11 11 11 10 Storage 7 | . 14 11 9 9 9 6 6 6 5 5 5 5 5 5 Processor 15 | . 13 11 26 19 18 19 20 20 16 11 11 11 11 14 Hackware 2 | . . . . . . . . . 1 5 5 5 5 6 Protection 3 | . . . . 7 9 6 6 6 5 5 5 5 5 2 Energy Gun 3 | . 25 . . . . . . . . . . 6 1 3 Ballistic Gun 6 | . 2 22 18 15 18 7 . 2 8 3 5 . 4 2 Ballistic Cannon 1 | . . . . . . 5 6 8 . . . . . 2 Peak Build Rating 114 | . 13 21 27 30 28 52 50 56 75 79 74 78 80 114 Average Rating 57 | . 8 19 26 28 27 45 49 54 70 75 73 67 79 102 On Entrance 44 | 6 6 13 21 27 28 27 52 50 56 70 74 74 78 80 Naked Turns . | . . . . . . . . . . . . . . . Heaviest Build 143 | 11 91 91 91 102 102 113 109 113 132 143 136 126 133 139 Greatest Support 213 | 20 20 40 36 36 32 50 50 50 65 38 38 38 38 213 Greatest Overweight (x) 26 | . 9 3 2 3 3 2 2 2 5 3 3 3 3 26 Average Overweight (x) 2 | . 6 2 2 2 3 2 2 2 2 3 3 3 3 2 Largest Inventory Capacity 25 | . 25 25 25 25 25 25 25 25 25 25 25 25 25 25 Average Capacity 24 | . 23 25 25 25 25 25 25 25 25 25 25 25 25 24 Most Carried 25 | . 25 25 25 25 25 25 25 25 25 25 25 25 25 25 Average Carried 24 | . 18 24 24 24 24 24 24 24 24 24 25 24 24 24 Final Capacity 25 | 8 25 25 25 25 25 25 25 25 25 25 25 25 25 5 Final Carried 25 | 6 25 25 25 25 25 25 25 24 25 25 25 25 25 4 Class Distribution -------------------- 62% | Mutant 18% | Commander-Mutant 9% | Scavenger-Mutant 6% | Scavenger-Skirmisher Dominant Class ---------------- Mutant | -10/Materials Mutant | -9/Materials Mutant | -8/Materials Mutant | -8/Storage Commander-Mutant | -8/Recycling Commander-Mutant | -6/Factory Mutant | -6/Waste Mutant | -6/Factory Mutant | -5/Factory Mutant | -5/Upper Caves Mutant | -5/Upper Caves Commander-Mutant | -5/Warlord Scavenger-Mutant | -4/Proximity Caves Scavenger-Mutant | -4/Factory Resources | -11 -10 -9 -8 -8 -8 -6 -6 -6 -5 -5 -5 -5 -4 -4 ----------- Run | Yrd Mat Mat Mat Sto Rec Fac Was Fac Fac Upp Upp War Pro Fac Matter Collected 4352 | 200 180 474 230 306 110 388 181 173 624 393 188 82 20 803 Remotely . | . . . . . . . . . . . . . . . Salvage Created 5125 | . 110 717 230 360 98 693 191 300 603 239 . . . 1584 Parts 246 | . 7 41 13 24 10 24 . 11 35 7 . . . 74 Haulers Intercepted 3 | . . . . 2 . . . 1 . . . . . . Recyclers Shooed 9 | . . 1 . 1 . 1 . 3 1 . . . . 2 Parts Field Recycled . | . . . . . . . . . . . . . . . Retrieved Matter . | . . . . . . . . . . . . . . . Parts Self-Destructed 4 | . . . . . . . . . . 4 . . . . Prevented 2 | . . . . . . . . . . 2 . . . . Kills | -11 -10 -9 -8 -8 -8 -6 -6 -6 -5 -5 -5 -5 -4 -4 ------- Run | Yrd Mat Mat Mat Sto Rec Fac Was Fac Fac Upp Upp War Pro Fac Combat Hostiles Destroyed 97 | . 2 21 5 11 2 8 . 7 14 4 . . . 23 Guns 58 | . 2 21 5 7 2 3 . . 6 3 . . . 9 Cannons 14 | . . . . 1 . 2 . 3 1 . . . . 7 AOE 21 | . . . . 3 . 2 . 4 7 1 . . . 4 Classes Destroyed 13 | . 2 5 1 1 . 3 . . . . . . . 1 Worker 5 | . . . . . . 1 . 1 . . . . . 3 Builder 6 | . . 1 . . . 1 . . . . . . . 4 Tunneler 1 | . . . 1 . . . . . . . . . . . Hauler 3 | . . . . 2 . . . 1 . . . . . . Recycler 3 | . . 1 . . . 1 . 1 . . . . . . Operator 4 | . 1 2 . . . . . . 1 . . . . . Watcher 4 | . . . . . . 2 . . . . . . . 2 Swarmer 20 | . . 4 . 3 . . . 4 5 1 . . . 3 Grunt 42 | . 2 12 3 6 . 7 1 . 3 1 . . . 7 Brawler 3 | . . 1 . . . . . . 1 . . . . 1 Sentry 18 | . . 4 2 2 2 . . 1 4 1 . . . 2 Hunter 7 | . . . . . . 1 . 2 1 1 . . . 2 Programmer 8 | . . . . . . . . . . . . . . 8 Best Kill Streak 9 | . 2 8 4 5 1 5 . 7 9 3 . . . 8 Combat Bots Only 9 | . 2 6 4 3 1 3 . 4 9 3 . . . 4 Max Kills in Single Turn 3 | . 1 2 1 2 1 2 1 3 3 1 . . . 3 Gunslinging 1 | . . . . 1 . . . . . . . . . . Exploded 3 | . . . . 1 . 1 . 2 3 1 . . . 2 Melee . | . . . . . . . . . . . . . . . Uniques/NPCs Destroyed . | . . . . . . . . . . . . . . . Combat | -11 -10 -9 -8 -8 -8 -6 -6 -6 -5 -5 -5 -5 -4 -4 -------- Run | Yrd Mat Mat Mat Sto Rec Fac Was Fac Fac Upp Upp War Pro Fac Hostile Shots Fired 906 | . 9 86 14 41 . 14 . 47 104 39 . 6 . 546 Missed 268 | . 4 23 3 5 . 6 . 16 28 8 . 2 . 173 Hits 638 | . 5 63 11 36 . 8 . 31 76 31 . 4 . 373 Melee 5 | . . 2 . . . . . . 3 . . . . . Projectile 633 | . 5 61 11 36 . 8 . 31 73 31 . 4 . 373 AOE 2 | . . . . . . . . . . . . . . 2 Critical Strikes 28 | . . 1 . 2 . 1 . . 1 2 . . . 21 Part Disruptions 1 | . . . . . . . . . . . . . . 1 Damage Taken 11498 | . 58 960 166 548 . 307 15 585 2000 396 . 65 . 6398 Core 1721 | . 12 200 30 44 . 20 . 32 159 31 . . . 1193 Absorbed by Shields 934 | . . . . . . . . . . 124 . 49 . 761 Ignored by Resistances 211 | . . . . . . . . . 95 109 . . . 7 Regen/Repaired (Parts) 453 | . . . . . . . . . 327 . . 126 . . Core Remaining (%) 84 | 100 95 50 . . 86 . . 93 . . . . 81 . Volleys Fired 326 | . 11 51 14 23 4 28 10 12 47 17 . 8 . 101 Largest 2 | . 2 2 2 2 2 2 1 2 2 2 . 2 . 2 Hottest 136 | . 80 50 50 100 48 88 33 88 118 118 . 80 . 136 Shots Fired 563 | . 22 102 28 36 8 47 10 21 80 27 1 16 . 165 Gun 413 | . 22 102 28 26 8 28 . . 57 13 1 16 . 112 Cannon 90 | . . . . . . 14 . 18 13 10 . . . 35 Launcher 57 | . . . . 7 . 5 10 3 10 4 . . . 18 Special 3 | . . . . 3 . . . . . . . . . . Kinetic 373 | . . 102 28 26 8 42 . 18 57 13 1 . . 78 Thermal 111 | . . . . 3 . . . . 13 10 . 16 . 69 Explosive 31 | . . . . 7 . 1 10 3 10 . . . . . Electromagnetic 48 | . 22 . . . . 4 . . . 4 . . . 18 Robot Hit Streak 17 | . 5 10 8 15 4 17 7 10 12 4 . 7 . 10 Robot Miss Streak 6 | . 3 6 3 2 2 4 1 5 3 2 . 1 . 4 Penetration Max 1 | . . . . . . . . . . . . . . 1 Secondary Targets 5 | . . 1 . 2 1 . . . . . . . . 1 Max Gunslinging Chain 1 | . . 1 . 1 1 . . . . . . . . 1 Shots Hit Robots 392 | . 11 80 22 31 5 39 9 20 55 19 . 13 . 88 Core Hits 271 | . 5 38 14 22 4 35 2 41 40 8 . 4 . 58 Critical Kills 11 | . . . . 1 . 1 . . 2 . . . . 7 Critical Parts Destroyed 10 | . . 2 . . . . . . 3 . . . . 5 Critical Strikes 22 | . . 2 . 1 . 1 . . 5 . . . . 13 Destroy 22 | . . 2 . 1 . 1 . . 5 . . . . 13 Melee Attacks 6 | . . . . 1 . . . 4 1 . . . . . Impact 1 | . . . . 1 . . . . . . . . . . Slashing 5 | . . . . . . . . 4 1 . . . . . Piercing . | . . . . . . . . . . . . . . . Sneak Attacks . | . . . . . . . . . . . . . . . Combat Hostiles . | . . . . . . . . . . . . . . . Follow-up Attacks . | . . . . . . . . . . . . . . . Damage Inflicted 13310 | . 152 1563 432 1154 106 1360 909 1089 1989 611 . 179 . 3766 Guns 6001 | . 152 1563 432 436 106 375 . . 805 220 . 179 . 1733 Cannons 1769 | . . . . . . 365 . 403 216 214 . . . 571 Explosions 5450 | . . . . 692 . 620 909 676 968 177 . . . 1408 Melee . | . . . . . . . . . . . . . . . Ramming 64 | . . . . . . . . 10 . . . . . 54 Kinetic 5918 | . . 1563 432 436 106 740 . 403 805 220 . . . 1213 Thermal 1856 | . . . . 26 . . . . 216 214 . 179 . 1221 Explosive 3176 | . . . . 692 . 35 909 676 864 . . . . . Electromagnetic 2296 | . 152 . . . . 585 . . 104 177 . . . 1278 Impact . | . . . . . . . . . . . . . . . Slashing . | . . . . . . . . . . . . . . . Piercing . | . . . . . . . . . . . . . . . Highest Corruption 19 | . . . . 1 1 . . 3 6 6 6 6 . 19 Average Corruption 4 | . . . . 1 1 . . 3 2 6 6 6 . 9 Corruption Purged . | . . . . . . . . . . . . . . . Corruption Blocked . | . . . . . . . . . . . . . . . Effects 61 | . . . . 3 1 . . 7 8 9 6 1 . 26 Message Errors 18 | . . . . . . . . . 1 2 4 1 . 10 Matter Fused 12 | . . . . 1 . . . 3 2 2 1 . . 3 Heat Flow Errors 7 | . . . . 1 . . . 1 2 2 . . . 1 Energy Discharges 12 | . . . . 1 1 . . 1 1 1 . . . 7 Parts Fused 1 | . . . . . . . . . . . . . . 1 Data Loss (minor) 3 | . . . . . . . . 1 1 1 . . . . Data Loss (major) 3 | . . . . . . . . 1 1 . . . . 1 Misfires 1 | . . . . . . . . . . . 1 . . . Misdirections 3 | . . . . . . . . . . . . . . 3 Weapon Failures 1 | . . . . . . . . . . 1 . . . . Overload Shots . | . . . . . . . . . . . . . . . Overflow Damage 164 | . . 24 . 9 . 27 13 2 18 6 . . . 65 Projectiles 21 | . . . . . . . . . . 6 . . . 15 Explosions 131 | . . 24 . 9 . 27 13 2 18 . . . . 38 Melee 12 | . . . . . . . . . . . . . . 12 Knockbacks 13 | . . . . . . 5 . . . . . . . 8 Impact 1 | . . . . . . . . . . . . . . 1 Kinetic 12 | . . . . . . 5 . . . . . . . 7 Secondary . | . . . . . . . . . . . . . . . Self-Inflicted Damage 434 | . . 223 . . . . 15 . 175 16 . . . 5 Shots 12 | . . 2 . . . . 1 . 6 2 . . . 1 Rammed 3 | . . . . . . . . 1 . . . . . 2 Targets Rammed 4 | . . . . . . . . 1 . . . . . 3 Kicked . | . . . . . . . . . . . . . . . Crushed 1 | . . . . . . . . . . . . . . 1 Highest Temperature 511 | . 156 17 . 197 . 45 . 108 276 202 . 79 . 511 Average Temperature 115 | . 67 3 . 33 . 20 . 35 90 93 . 29 . 154 Received Heat Transfer 2173 | . 30 303 81 243 . 165 . 12 252 85 . 16 . 986 Effects 9 | . . . . . . . . . 1 . . . . 8 Shutdowns 2 | . . . . . . . . . . . . . . 2 Energy Bleed 2 | . . . . . . . . . . . . . . 2 Interference 4 | . . . . . . . . . 1 . . . . 3 Damage (minor) 1 | . . . . . . . . . . . . . . 1 Siege Activations . | . . . . . . . . . . . . . . . Martial Activations . | . . . . . . . . . . . . . . . Shielding Activations . | . . . . . . . . . . . . . . . Robots Disrupted 1 | . . . . . . 1 . . . . . . . . Combat Hostiles 1 | . . . . . . 1 . . . . . . . . Robots Corrupted 5 | . . . . . . 1 . . . . . . . 4 Combat Hostiles 4 | . . . . . . 1 . . . . . . . 3 Parts Fried 17 | . 1 . . . . 4 . . . . . . . 12 Impact Corruptions 1 | . . . . . . . . . . . . . . 1 Robots Melted . | . . . . . . . . . . . . . . . Combat Hostiles . | . . . . . . . . . . . . . . . Parts Melted 7 | . . . . . . 5 . . . 1 . . . 1 Heat Transferred 2307 | . . . . 50 . . . . 259 259 . 368 . 1371 Parts Sabotaged . | . . . . . . . . . . . . . . . Parts Stolen . | . . . . . . . . . . . . . . . Parts Stripped . | . . . . . . . . . . . . . . . Power Chain Reactions 4 | . . . . . . . . . . . . . . 4 Alert | -11 -10 -9 -8 -8 -8 -6 -6 -6 -5 -5 -5 -5 -4 -4 ------- Run | Yrd Mat Mat Mat Sto Rec Fac Was Fac Fac Upp Upp War Pro Fac Maximum Alert Level 1 | . . 1 . 1 . 1 . . 1 . . . . 1 Low Security (%) 76 | . 100 62 100 63 100 68 100 100 84 . . . . 55 Level 1 23 | . . 37 . 36 . 31 . . 15 . . . . 44 Level 2 . | . . . . . . . . . . . . . . . Level 3 . | . . . . . . . . . . . . . . . Level 4 . | . . . . . . . . . . . . . . . Level 5 . | . . . . . . . . . . . . . . . High Security . | . . . . . . . . . . . . . . . Max Security . | . . . . . . . . . . . . . . . Peak Influence 384 | . 50 369 143 231 144 248 75 109 351 . . . . 384 Initial 87 | . . . 87 42 75 22 75 8 39 . . . . . Average 112 | . 5 174 97 150 102 143 45 26 62 . . . . 187 Influence Increases 3997 | . 104 669 136 371 109 646 17 203 570 90 . 172 . 910 Destroy 0b10 Robot/C 2240 | . 40 420 100 220 60 320 . 140 280 80 . 120 . 460 Destroy 0b10 Robot/NC 155 | . 5 20 5 10 . 45 . 15 5 . . 5 . 45 Destroy Leader 498 | . 10 110 30 54 . 78 . 32 70 10 . . . 104 Allied During Kill 236 | . . . . . 42 147 . . . . . 47 . . Successful Hack 149 | . 49 31 . 19 7 3 . . 12 . . . . 28 Disable Machine 240 | . . 45 . 45 . 45 . . 75 . . . . 30 Destroy Structure 329 | . . 28 1 23 . 8 17 16 128 . . . . 108 Lose Combat Pursuer 150 | . . 15 . . . . . . . . . . . 135 Influence Decreases 3821 | . 104 462 240 281 248 484 221 134 342 255 144 90 82 734 Entered New Map 743 | . . . 120 61 118 32 141 4 42 115 28 . 82 . Time Decay 2327 | . 104 292 120 190 130 312 80 127 252 130 116 30 . 444 Lost Part 391 | . . 20 . 30 . . . 3 48 10 . . . 280 Lost Ally 210 | . . . . . . 140 . . . . . 60 . 10 Purge Threat 150 | . . 150 . . . . . . . . . . . . Squads Dispatched 30 | . 2 2 1 1 . 7 . 4 3 . . . . 10 Investigation 8 | . 1 1 . 1 . 2 . . 1 . . . . 2 Extermination 7 | . . . . . . 1 . 1 1 . . . . 4 Reinforcement 13 | . 1 1 1 . . 4 . 2 . . . . . 4 Assault . | . . . . . . . . . . . . . . . Garrison 2 | . . . . . . . . 1 1 . . . . . Intercept . | . . . . . . . . . . . . . . . Searches Triggered . | . . . . . . . . . . . . . . . Construction Impeded 5 | . . . . . . 2 . 1 . . . . . 2 Haulers Reinforced 3 | . . . . . . 1 . 1 . . . . . 1 Active Scanning Responses . | . . . . . . . . . . . . . . . Cargo Convoy Interrupts . | . . . . . . . . . . . . . . . Stealth | -11 -10 -9 -8 -8 -8 -6 -6 -6 -5 -5 -5 -5 -4 -4 --------- Run | Yrd Mat Mat Mat Sto Rec Fac Was Fac Fac Upp Upp War Pro Fac Distress Signals 11 | . 2 1 1 . . 3 . . . . . 1 . 3 Communications Jammed 2 | . . . . . . . . . . . . . . 2 Distress Signals 2 | . . . . . . . . . . . . . . 2 Times Spotted 176 | . 6 28 10 12 3 27 . 9 15 4 . 22 . 40 Peak Tracking Total 15 | . 2 5 6 3 2 7 . 5 9 3 . 15 . 7 Tactical Retreats 6 | . . 1 . . . . . . . . . . . 5 Traps | -11 -10 -9 -8 -8 -8 -6 -6 -6 -5 -5 -5 -5 -4 -4 ------- Run | Yrd Mat Mat Mat Sto Rec Fac Was Fac Fac Upp Upp War Pro Fac Traps Triggered 6 | . 1 . . 1 . 1 . 1 1 . . . . 1 Indirectly . | . . . . . . . . . . . . . . . Trap Hack Attempts . | . . . . . . . . . . . . . . . Triggered . | . . . . . . . . . . . . . . . Disarmed . | . . . . . . . . . . . . . . . Reprogrammed . | . . . . . . . . . . . . . . . Reused . | . . . . . . . . . . . . . . . Traps Extracted . | . . . . . . . . . . . . . . . Installed . | . . . . . . . . . . . . . . . Triggered . | . . . . . . . . . . . . . . . Machines | -11 -10 -9 -8 -8 -8 -6 -6 -6 -5 -5 -5 -5 -4 -4 ---------- Run | Yrd Mat Mat Mat Sto Rec Fac Was Fac Fac Upp Upp War Pro Fac Machines Disabled 16 | . . 3 . 3 . 3 . . 5 . . . . 2 Max in Single Turn 3 | . . 2 . 1 . 1 . . 3 . . . . 1 Garrison Access 1 | . . . . . . . . . 1 . . . . . Machines Repaired . | . . . . . . . . . . . . . . . Machines Dismantled . | . . . . . . . . . . . . . . . Machines Sabotaged . | . . . . . . . . . . . . . . . Overloaded Fab Kills . | . . . . . . . . . . . . . . . Hacking | -11 -10 -9 -8 -8 -8 -6 -6 -6 -5 -5 -5 -5 -4 -4 --------- Run | Yrd Mat Mat Mat Sto Rec Fac Was Fac Fac Upp Upp War Pro Fac Machines Accessed 34 | . 5 7 1 3 1 4 . 4 5 . . 1 . 3 Terminals 25 | . 5 6 1 3 1 2 . 1 3 . . . . 3 Fabricators 3 | . . . . . . 1 . 2 . . . . . . Repair Stations 1 | . . . . . . . . . 1 . . . . . Recycling Units . | . . . . . . . . . . . . . . . Scanalyzers 3 | . . 1 . . . 1 . 1 . . . . . . Garrison Access 1 | . . . . . . . . . 1 . . . . . Total Hacks 87 | . 12 20 2 6 3 12 . 6 15 . . 4 . 7 Successful 51 | . 7 15 1 3 1 9 . 1 8 . . 4 . 2 Failed 36 | . 5 5 1 3 2 3 . 5 7 . . . . 5 Catastrophic 9 | . 1 1 . 1 1 . . . 3 . . . . 2 Database Lockouts . | . . . . . . . . . . . . . . . Manual 27 | . 8 8 2 2 . . . 2 3 . . . . 2 Terminals 58 | . 12 15 2 6 3 3 . 2 8 . . . . 7 Fabricators 3 | . . . . . . 1 . 2 . . . . . . Repair Stations 6 | . . . . . . . . . 6 . . . . . Recycling Units . | . . . . . . . . . . . . . . . Scanalyzers 15 | . . 5 . . . 8 . 2 . . . . . . Garrison Access 1 | . . . . . . . . . 1 . . . . . Terminal Hacks 24 | . 5 7 . 2 1 1 . . 2 . . 4 . 2 Robot Analysis 4 | . 2 2 . . . . . . . . . . . . Prototype ID Bank 4 | . . . . . . . . . . . . 4 . . Open Door 1 | . . . . 1 . . . . . . . . . . Open DSF 1 | . . . . . . 1 . . . . . . . . Branch Access Points 3 | . . . . 1 1 . . . 1 . . . . . Terminal Index 1 | . . 1 . . . . . . . . . . . . Unreport Threat 1 | . . 1 . . . . . . . . . . . . Locate Traps 8 | . 2 3 . . . . . . 1 . . . . 2 Hauler Manifests 1 | . 1 . . . . . . . . . . . . . Fabricator Hacks . | . . . . . . . . . . . . . . . Repair Station Hacks 5 | . . . . . . . . . 5 . . . . . Scan Component 3 | . . . . . . . . . 3 . . . . . Repair 2 | . . . . . . . . . 2 . . . . . Recycling Unit Hacks . | . . . . . . . . . . . . . . . Scanalyzer 13 | . . 5 . . . 8 . . . . . . . . Insert Component 7 | . . 3 . . . 4 . . . . . . . . Analyze 6 | . . 2 . . . 4 . . . . . . . . Garrison Access Hacks 1 | . . . . . . . . . 1 . . . . . Seal Access 1 | . . . . . . . . . 1 . . . . . Unauthorized Hacks 8 | . 2 3 1 1 . . . 1 . . . . . . Terminals 8 | . 2 3 1 1 . . . 1 . . . . . . Botnet 7 | . 2 2 1 1 . . . 1 . . . . . . Operators 1 | . . 1 . . . . . . . . . . . . Fabricators . | . . . . . . . . . . . . . . . Repair Stations . | . . . . . . . . . . . . . . . Recycling Units . | . . . . . . . . . . . . . . . Scanalyzers . | . . . . . . . . . . . . . . . Garrison Access . | . . . . . . . . . . . . . . . Data Cores Recovered 1 | . . . . . . . . . 1 . . . . . Used . | . . . . . . . . . . . . . . . Hacking Detections 21 | . 2 4 . 2 . 4 . 2 4 . . . . 3 Full Trace Events 8 | . 1 1 . 1 . 2 . . 1 . . . . 2 Feedback Events 1 | . . . . . . . . . . . . . . 1 Corruption 1 | . . . . . . . . . . . . . . 1 Feedback Blocked . | . . . . . . . . . . . . . . . Robot Schematics Acquired . | . . . . . . . . . . . . . . . Robots Built . | . . . . . . . . . . . . . . . Authchips . | . . . . . . . . . . . . . . . Time . | . . . . . . . . . . . . . . . Total Robot Build Rating . | . . . . . . . . . . . . . . . Part Schematics Acquired 5 | . . 2 . . . 3 . . . . . . . . Parts Built . | . . . . . . . . . . . . . . . Authchips . | . . . . . . . . . . . . . . . Time . | . . . . . . . . . . . . . . . Total Part Build Rating . | . . . . . . . . . . . . . . . Parts Repaired 2 | . . . . . . . . . 2 . . . . . Time 70 | . . . . . . . . . 70 . . . . . Parts Recycled . | . . . . . . . . . . . . . . . Recycled Matter . | . . . . . . . . . . . . . . . Retrieved Matter . | . . . . . . . . . . . . . . . Retrieved Components . | . . . . . . . . . . . . . . . Parts Scanalyzed 6 | . . 2 . . . 4 . . . . . . . . Part Schematics Acquired 5 | . . 2 . . . 3 . . . . . . . . Parts Damaged . | . . . . . . . . . . . . . . . Bothacking | -11 -10 -9 -8 -8 -8 -6 -6 -6 -5 -5 -5 -5 -4 -4 ------------ Run | Yrd Mat Mat Mat Sto Rec Fac Was Fac Fac Upp Upp War Pro Fac Used RIF Installer . | . . . . . . . . . . . . . . . Robots Hacked . | . . . . . . . . . . . . . . . Non-combat . | . . . . . . . . . . . . . . . Combat . | . . . . . . . . . . . . . . . Robot Hacks Applied . | . . . . . . . . . . . . . . . Relay Couplers Released . | . . . . . . . . . . . . . . . Fabnet Peak Effective % . | . . . . . . . . . . . . . . . Robots Rewired 6 | . . . . 1 . . . . . . . 5 . . Allies Hacked . | . . . . . . . . . . . . . . . Hacks Repelled . | . . . . . . . . . . . . . . . Allies | -11 -10 -9 -8 -8 -8 -6 -6 -6 -5 -5 -5 -5 -4 -4 -------- Run | Yrd Mat Mat Mat Sto Rec Fac Was Fac Fac Upp Upp War Pro Fac Total Allies 15 | . . . . 10 . . . . . . . 5 . . Largest Group 10 | . . . . 10 10 10 1 . . . . 5 1 1 Highest-Rated Group 290 | . . . . 173 173 173 13 . . . . 290 64 64 Highest-Rated Ally 68 | . . . . 29 29 29 13 . . . . 68 64 64 Total Orders 3 | . . . . . . . . . 3 . . . . . EXPLORE 3 | . . . . . . . . . 3 . . . . . Ally Attacks 177 | . . . . 1 12 144 . . . . . 20 . . Total Damage 3159 | . . . . 13 116 1588 . . . . . 1442 . . Kills 21 | . . . . . 1 13 . . . . . 7 . . Allies Corrupted . | . . . . . . . . . . . . . . . Allies Melted . | . . . . . . . . . . . . . . . Intel | -11 -10 -9 -8 -8 -8 -6 -6 -6 -5 -5 -5 -5 -4 -4 ------- Run | Yrd Mat Mat Mat Sto Rec Fac Was Fac Fac Upp Upp War Pro Fac Active Infowar (turns) 5109 | . . . . . . 779 165 402 868 . 246 883 344 1422 Sensors 4469 | . . . . . . 779 165 402 868 . 246 883 344 782 Machine Analysis 1245 | . . . . . . . . . . . . . . 1245 Jamming 991 | . . . . . . . . . . . . . . 991 Robot Analysis Total 4 | . 2 2 . . . . . . . . . . . . Derelict Logs Recovered 1 | . . . . . . . . . . 1 . . . . Drone Launches 3 | . . . . . . . . . 3 . . . . . Drone Recoveries 3 | . . . . . . . . . 3 . . . . . Exploration | -11 -10 -9 -8 -8 -8 -6 -6 -6 -5 -5 -5 -5 -4 -4 ------------- Run | Yrd Mat Mat Mat Sto Rec Fac Was Fac Fac Upp Upp War Pro Fac Turns Passed 8036 | . 795 678 247 383 279 781 165 402 1084 264 286 883 344 1445 Spaces Moved 4708 | 1 375 394 149 202 183 517 115 268 539 156 209 599 251 750 Core 1 | . . . . . . . . . . . . . . 1 Treads 175 | . . . . . . . . . 37 . . . . 138 Legs 62 | 1 61 . . . . . . . . . . . . . Wheels 4470 | . 314 394 149 202 183 517 115 268 502 156 209 599 251 611 Hover . | . . . . . . . . . . . . . . . Flight . | . . . . . . . . . . . . . . . Fastest Speed 112 | 120 120 116 120 120 128 112 120 120 120 135 135 135 135 129 Average Speed 135 | 120 187 120 120 127 128 119 120 120 141 135 135 135 135 141 Slowest Speed 1350 | 120 215 125 120 128 128 120 120 120 560 135 135 135 135 1350 Overloaded Moves . | . . . . . . . . . . . . . . . Propulsion Burnouts . | . . . . . . . . . . . . . . . Robots Hopped . | . . . . . . . . . . . . . . . Potential Cave-ins 8 | . . . . . . . . . 8 . . . . . Cave-ins Triggered 1 | . . . . . . . . . 1 . . . . . Exploration Rate (%) 39 | 2 70 54 17 41 43 18 79 10 17 30 46 80 51 27 Regions Visited 14 Branch Regions 6 Pre-discovered Areas . | . . . . . . . . . . . . . . . Known Exits Taken 7 | . . . . 1 . . . 1 1 1 1 1 1 . Unknown Exits Taken 5 | 1 1 1 1 . 1 . . . . . . . . . Scrap Searched 6 | . . . . . . . . . . 1 3 . 2 . Spaces Dug 28 | . . . . . . . . 4 3 . . . . 21 Terrain Destroyed 238 | . . 27 . 33 . 8 29 16 68 5 1 . . 51 Melee 5 | . . . . . . . . 4 1 . . . . . Projectile 43 | . . . . . . . . . 10 5 1 . . 27 AOE 190 | . . 27 . 33 . 8 29 12 57 . . . . 24 Terrain Rammed . | . . . . . . . . . . . . . . . Walls Destroyed . | . . . . . . . . . . . . . . . Machines Disabled . | . . . . . . . . . . . . . . . Actions | -11 -10 -9 -8 -8 -8 -6 -6 -6 -5 -5 -5 -5 -4 -4 --------- Run | Yrd Mat Mat Mat Sto Rec Fac Was Fac Fac Upp Upp War Pro Fac Total 5826 | . 448 510 197 287 221 642 132 319 782 179 214 668 256 971 Wait 346 | . 14 13 10 29 28 45 . 21 148 . . 15 . 23 Move 4694 | . 374 393 148 201 182 517 114 267 537 155 208 598 250 750 Hop . | . . . . . . . . . . . . . . . Pick Up 131 | . 27 19 10 9 2 13 2 2 12 2 1 4 2 26 Fast Attach 15 | . 2 . . . 1 3 . 1 3 . 1 1 . 3 Attach 41 | . . 4 2 3 . 4 . 1 7 2 . . . 18 Detach 7 | . . . . . . 1 . . . . 1 2 . 3 Swap 101 | . 9 9 4 10 1 13 3 6 15 3 1 5 2 20 Drop 130 | . 11 21 9 8 3 18 3 4 11 . 2 14 2 24 Fire 326 | . 11 51 14 23 4 28 10 12 47 17 . 8 . 101 Melee 6 | . . . . 1 . . . 4 1 . . . . . Ram . | . . . . . . . . . . . . . . . Kick . | . . . . . . . . . . . . . . . Crush 4 | . . . . . . . . 1 . . . . . 3 Escape Stasis 1 | . . . . . . . . . 1 . . . . . Rewire 24 | . . . . 3 . . . . . . . 21 . . Trap . | . . . . . . . . . . . . . . . Miscellaneous . | . . . . . . . . . . . . . . . Route ------- -11/Scrapyard -10/Materials (discovered 3 exits: *Mat x2 / *Min) -9/Materials (discovered 2 exits: *Mat / [*Min]) -8/Materials -8/Storage -8/Recycling -6/Factory -6/Waste -6/Factory -5/Factory (discovered 2 exits: *Upp x2) -5/Upper Caves -5/Upper Caves -5/Warlord -4/Proximity Caves -4/Factory (discovered 1 exit: [*Res]) History --------- Turn | Location | Event 1 | -11/Scrapyard | Discovered new exit (range 0) 1 | -11/Scrapyard | Entered Materials 190 | -10/Materials | Discovered new exit (range 13) 232 | -10/Materials | Identified exit to Mines 318 | -10/Materials | Build established: Mutant 552 | -10/Materials | Discovered new exit (range 15) 771 | -10/Materials | Discovered new exit (range 13) 796 | -10/Materials | Entered another Materials area 796 | -9/Materials | Evolved 2 slots: Propulsion x2 1082 | -9/Materials | Discovered new exit (range 14) 1456 | -9/Materials | Discovered new exit (range 16) 1474 | -9/Materials | Entered another Materials area 1474 | -8/Materials | Evolved 2 slots: Utility x2 1716 | -8/Materials | Discovered new exit (range 5) 1721 | -8/Materials | Entered Storage 1796 | -8/Storage | Lost 3 parts (2n1u) 2049 | -8/Storage | Identified exit to Recycling 2053 | -8/Storage | Assisted by bots powering up and referring to "LRC-V3" 2083 | -8/Storage | Used back door to open Recycling access 2104 | -8/Storage | Entered Recycling 2104 | -8/Recycling | Accompanied by 10 allies 2349 | -8/Recycling | Discovered new exit (range 6) 2359 | -8/Recycling | Build established: Commander-Mutant 2383 | -8/Recycling | Entered Factory 2383 | -6/Factory | Accompanied by 10 allies 2383 | -6/Factory | Evolved 4 slots: Propulsion x2, Utility x2 2494 | -6/Factory | Identified exit to DSF 2648 | -6/Factory | Lost 5 allies 3164 | -6/Factory | Sucked down chute 3164 | -6/Factory | Entered Waste 3164 | -6/Waste | The area was eerily silent 3194 | -6/Waste | 1 allies followed down the chute 3278 | -6/Waste | Build established: Mutant 3311 | -6/Waste | Discovered new exit (range 10) 3324 | -6/Waste | Found Adv. Powered Armor 3328 | -6/Waste | Identified exit to Factory 3329 | -6/Waste | Entered Factory 3673 | -6/Factory | Garrison activated, responded to threat 3721 | -6/Factory | Discovered new exit (range 7) 3728 | -6/Factory | Identified exit to Factory 3731 | -6/Factory | Entered another Factory area 3731 | -5/Factory | Evolved 2 slots: Power x1, Utility x1 4031 | -5/Factory | Repaired Hrd. Medium Armor Plating 4064 | -5/Factory | Repaired Imp. Treads 4293 | -5/Factory | Garrison activated, responded to threat 4599 | -5/Factory | Crushed by falling debris 4674 | -5/Factory | Destroyed 9 combat bots 4685 | -5/Factory | Lost 3 parts (1p1n1u) 4686 | -5/Factory | Identified exit to Upper Caves 4815 | -5/Factory | Entered Upper Caves 4825 | -5/Upper Caves | Encountered a Warlord checkpoint 4915 | -5/Upper Caves | Learned Factory stockpile data 5029 | -5/Upper Caves | Discovered new exit (range 11) 5030 | -5/Upper Caves | Attracted the attention of an 0b10 checkpoint 5067 | -5/Upper Caves | Identified exit to Upper Caves 5079 | -5/Upper Caves | Entered another Upper Caves area 5355 | -5/Upper Caves | Discovered new exit (range 8) 5363 | -5/Upper Caves | Identified exit to Warlord 5365 | -5/Upper Caves | Entered Warlord 5413 | -5/Warlord | System corruption cleaned by Quarantine Array 5703 | -5/Warlord | Met Warlord 5728 | -5/Warlord | Warlord's base attacked by MAIN.C 5919 | -5/Warlord | Build established: Commander-Mutant 6078 | -5/Warlord | Warlord forces counterattacked 6155 | -5/Warlord | Spotted Striker 6165 | -5/Warlord | Spotted Executioner 6222 | -5/Warlord | Discovered new exit (range 12) 6229 | -5/Warlord | Lost 10 allies 6234 | -5/Warlord | Identified exit to Proximity Caves 6248 | -5/Warlord | Entered Proximity Caves 6248 | -4/Proximity Caves | Accompanied by 1 ally 6574 | -4/Proximity Caves | Discovered new exit (range 5) 6580 | -4/Proximity Caves | Identified exit to Factory 6581 | -4/Proximity Caves | Found DCF Scrap (11 items) 6592 | -4/Proximity Caves | Entered Factory 6592 | -4/Factory | Accompanied by 1 ally 6592 | -4/Factory | Evolved 2 slots: Propulsion x1, Utility x1 7238 | -4/Factory | Build established: Scavenger-Skirmisher 7420 | -4/Factory | System corruption reached 10% 7456 | -4/Factory | Lost 3 parts (1p1n1u) 7895 | -4/Factory | Lost 3 parts (1p1n1u) 7933 | -4/Factory | Build established: Scavenger-Mutant 7987 | -4/Factory | Discovered new exit (range 11) 8022 | -4/Factory | Core integrity fell below 50% 8035 | -4/Factory | Core integrity fell below 20% 8037 | -4/Factory | Destroyed by H-71 Marshal with Heavy Mass Driver Last Messages --------------- 08028_ Hrd. Medium Armor Plating severed. 08028_ Centrium Wheel severed. 08029_ Mic. Fission Core destroyed. 08029_ Adv. Shield Generator destroyed. 08030_ K-01 Serf collects debris. 08030_ Imp. Hacking Suite destroyed. 08031_ Penetrated by Slug. 08031_ Slug penetrates P-70 Sage. 08031_ Penetrated by Slug. 08031_ Slug penetrates P-70 Sage. 08032_ Imp. Hacking Suite destroyed. 08032_ Penetrated by Slug. 08032_ Slug penetrates Wall. 08032_ Penetrated by Slug. 08032_ Slug penetrates Wall. 08034_ Penetrated by Slug. 08034_ M-13 Machinist repairs K-01 Serf Wheel. 08034_ Huge Storage Unit destroyed. 08034_ K-01 Serf collects debris. 08035_ System corrupted: Energy discharge (-11). Map ----- +----------------------------------------------------+ | # ## ! ?????????????????????????????????????""" | | ?# ## ???????????????????????????????????????? | | ?# ## """""""?????????????????????????????"""??? | | ?# ## """""""?????????????????????????????"""??? | | ?# ## """""""?????????????????????????????"""??? | | ?# ## """""""??????????????????????????????????? | | ## ## ????????????????????????????????????? | | # ## """""""??????????????????????????????????? | | # ##! """""""??????? ??????????????????????????? | | # ## """"""??????? ??????????????????????????? | | # %+[ """""" #???? #?????????????????????????? | | # #% ! #???? #?????????????????????????? | | # !#######+########## #?????????????????????????? | | # #?????????????????????????? | | #% #?????????????????????????? | | =+= #?????????????????????????? | | *#! """ """ #?????????????????????????? | | %+[* %"" """ #????""""?????????????????? | | =##### """ """ #????""""?????????????????? | | #???# #????""""?????????????????? | | |#???# """ """ #????""""?????????????????? | | #???# """ """ %#?????????????????????????? | | #???# """ """ % #?????????????????????????? | | #???# % h ! #?????????????????????????? | | +#???# %"" ###########???????????????? | | %##### %"" % *u!@!%! p ????????? | | ""%k =%=!